[Event "Clutch Chess International"]
[Site "Saint Louis"]
[Date "2020.06.08"]
[Round "1.11"]
[White "Xiong, Jeffery"]
[Black "Carlsen, Magnus"]
[Result "1/2-1/2"]
[ECO "B33"]
[WhiteElo "2730"]
[BlackElo "2881"]
[Annotator "ChessBase"]
[PlyCount "145"]
[EventDate "2020.06.05"]
[EventType "k.o."]
[EventCountry "USA"]
[SourceTitle "playchess.com"]
[Source "ChessBase"]
[SourceQuality "1"]
[TimeControl "600+5"]

1. e4 {[%emt 0:00:05]} c5 {[%emt 0:00:05]} 2. Nf3 {[%emt 0:00:02]} Nc6 {[%emt 0:00:01]} 3. d4 {[%emt 0:00:03]} cxd4 {[%emt 0:00:01]} 4. Nxd4 {[%emt 0:00:01]} Nf6 {[%emt 0:00:01]} 5. Nc3 {[%emt 0:00:01]} e5 {[%emt 0:00:00]} 6. Ndb5 {[%emt 0:00:00]} d6 {[%emt 0:00:01]} 7. Bg5 {[%emt 0:00:02]} a6 {[%emt 0:00:01]} 8. Na3 {[%emt 0:00:01]} b5 {[%emt 0:00:01]} 9. Bxf6 {[%emt 0:00:01]} gxf6 {[%emt 0:00:01]} 10. Nd5 {[%emt 0:00:03]} Bg7 {[%emt 0:00:05]} 11. Bd3 {[%emt 0:00:13]} Ne7 {[%emt 0:00:02]} 12. Nxe7 {[%emt 0:00:05]} Qxe7 {[%emt 0:00:00]} 13. c4 {[%emt 0:00:24]} f5 {[%emt 0:00:01]} 14. O-O {[%emt 0:00:25]} O-O {[%emt 0:00:03]} 15. Qh5 {[%emt 0:00:09]} d5 {[%emt 0:00:01]} 16. cxd5 {[%emt 0:00:11]} Qd8 {[%emt 0:00:02]} 17. exf5 {[%emt 0:00:09]} Qxd5 {[%emt 0:00:04]} 18. Rad1 {[%emt 0:00:01]} e4 {[%emt 0:00:03]} 19. Bxb5 {[%emt 0:00:01]} Qxf5 {[%emt 0:00:01]} 20. Qxf5 {[%emt 0:00:00]} Bxf5 {[%emt 0:00:00]} 21. Bd7 {[%emt 0:00:01]} Bxd7 {[%emt 0:00:02]} 22. Rxd7 {[%emt 0:00:00]} Bxb2 {[%emt 0:00:01]} 23. Nc4 {[%emt 0:00:00]} Bg7 {[%emt 0:00:00]} 24. Rfd1 {[%emt 0:00:08]} Rac8 {[%emt 0:00:26]} 25. Ne3 {[%emt 0:00:49]} Rc5 {[%emt 0:00:17]} 26. g4 {[%emt 0:00:26]} Ra5 {[%emt 0:00:08]} 27. R1d2 {[%emt 0:01:01]} Bh6 {[%emt 0:00:02]} 28. Re7 {[%emt 0:00:01]} Bxe3 {[%emt 0:00:03]} 29. fxe3 {[%emt 0:00:01]} Rg5 {[%emt 0:00:10]} 30. Rxe4 {[%emt 0:00:10]} f5 {[%emt 0:00:08]} 31. Ra4 {[%emt 0:02:05]} Rxg4+ {[%emt 0:00:02]} 32. Rxg4+ {[%emt 0:00:02]} fxg4 {[%emt 0:00:00]} 33. Rd4 {[%emt 0:00:00]} h5 {[%emt 0:00:27]} 34. Rd5 {[%emt 0:00:06]} Rf3 {[%emt 0:01:10]} 35. Rxh5 {[%emt 0:00:17]} Rxe3 {[%emt 0:00:01]} 36. Rg5+ {[%emt 0:00:01]} Kh7 {[%emt 0:00:24]} 37. Rxg4 {[%emt 0:00:00]} Ra3 {[%emt 0:00:02]} 38. Rg2 {[%emt 0:00:04]} a5 {[%emt 0:00:00]} 39. Kf1 {[%emt 0:00:25]} a4 {[%emt 0:00:04]} 40. Ke1 {[%emt 0:00:26]} Rh3 {[%emt 0:00:19]} 41. Kd2 {[%emt 0:00:18]} Ra3 {[%emt 0:00:09]} 42. Kc1 {[%emt 0:00:03]} Rh3 {[%emt 0:00:02]} 43. Kb2 {[%emt 0:00:04]} Kh6 {[%emt 0:00:09]} 44. Rg3 {[%emt 0:03:36]} Rxh2+ {[%emt 0:00:03]} 45. Ka3 {[%emt 0:00:01]} Kh5 {[%emt 0:00:09]} 46. Rg8 {[%emt 0:00:33]} Rd2 {[%emt 0:00:03]} 47. Ra8 {[%emt 0:00:09]} Kg5 {[%emt 0:00:04]} 48. Rxa4 {[%emt 0:00:00]} Kf5 {[%emt 0:00:02]} 49. Rc4 {[%emt 0:00:17]} Ke5 {[%emt 0:00:03]} 50. Kb3 {[%emt 0:00:01]} Kd6 {[%emt 0:00:49]} 51. a4 {[%emt 0:00:03]} Kd7 {[%emt 0:00:00]} 52. Kb4 {[%emt 0:00:09]} Rb2+ {[%emt 0:00:04]} 53. Ka5 {[%emt 0:00:04]} Rb1 {[%emt 0:00:00]} 54. Ka6 {[%emt 0:00:01]} Rb2 {[%emt 0:00:01]} 55. a5 {[%emt 0:00:01]} Rb1 {[%emt 0:00:01]} 56. Ka7 {[%emt 0:00:02]} Rb5 {[%emt 0:00:01]} 57. a6 {[%emt 0:00:01]} Rb1 {[%emt 0:00:01]} 58. Rh4 {[%emt 0:00:02]} Kc7 {[%emt 0:00:03]} 59. Rh7+ {[%emt 0:00:01]} Kc8 {[%emt 0:00:02]} 60. Rb7 {[%emt 0:00:03]} Rh1 {[%emt 0:00:05]} 61. Rb2 {[%emt 0:00:04]} Rc1 {[%emt 0:00:12]} 62. Rh2 {[%emt 0:00:10]} Rb1 {[%emt 0:00:03]} 63. Rh6 {[%emt 0:00:03]} Kc7 {[%emt 0:00:04]} 64. Rh7+ {[%emt 0:00:02]} Kc8 {[%emt 0:00:01]} 65. Rb7 {[%emt 0:00:01]} Rh1 {[%emt 0:00:04]} 66. Ka8 {[%emt 0:00:01]} Ra1 {[%emt 0:00:05]} 67. Rb6 {[%emt 0:00:05]} Kc7 {[%emt 0:00:03]} 68. Rh6 {[%emt 0:00:02]} Rb1 {[%emt 0:00:05]} 69. Rh7+ {[%emt 0:00:15]} Kc8 {[%emt 0:00:02]} 70. Rh8+ {[%emt 0:00:02]} Kc7 {[%emt 0:00:01]} 71. Rh7+ {[%emt 0:00:01]} Kc8 {[%emt 0:00:01]} 72. Rh8+ {[%emt 0:00:01]} Kc7 {[%emt 0:00:01]} 73. Rh7+ {[%emt 0:00:00]} 1/2-1/2